bitfinex/quotes_SOLUSD_20241022
["timestamp","ask_amount","ask_price","bid_price","bid_amount"]
[1729639892654,14.8894,167.91,167.85,15.7347]
[1729639892859,14.8894,167.91,167.84,23.776884]
[1729639893162,5.9564,167.89,167.84,23.776884]
[1729639894055,81.076,167.94,167.84,23.776884]
[1729639894056,5.9567,167.88,167.84,23.776884]
[1729639895078,20.0,167.92,167.84,23.776884]
[1729639895257,5.9563,167.89,167.84,23.776884]
[1729639897763,14.888,167.92,167.83,6.1767]
[1729639897967,5.9569,167.87,167.83,6.1767]
[1729639899774,5.9569,167.87,167.82,22.158125]
[1729639902685,5.9579,167.85,167.82,0.6280284]
[1729639902889,5.958,167.85,167.82,0.6280284]
[1729639905897,5.958,167.84,167.82,0.6280284]
[1729639907992,9.96852701,167.88,167.82,0.6280284]
[1729639908497,5.9576,167.86,167.82,0.6280284]
[1729639913613,5.9577,167.85,167.82,0.6280284]
[1729639915000,20.0,167.87,167.82,0.6280284]
[1729639915219,5.9573,167.86,167.82,0.6280284]
[1729639916707,20.0,167.87,167.82,0.6280284]
[1729639916920,5.9577,167.85,167.82,0.6280284]
[1729639919411,20.0,167.87,167.82,0.6280284]
[1729639919610,5.9574,167.86,167.82,0.6280284]
[1729639920924,20.0,167.87,167.82,0.6280284]
[1729639921218,5.9577,167.85,167.82,0.6280284]
[1729639926017,5.9584,167.83,167.82,0.6280284]
[1729639926321,5.9578,167.85,167.82,0.6280284]
[1729639935734,5.9572,167.87,167.82,22.158125]
[1729639936024,5.9573,167.86,167.82,22.158125]
[1729639936329,5.9573,167.86,167.82,0.6280284]
[1729639937210,5.9577,167.85,167.82,0.6280284]
[1729639941628,5.9583,167.84,167.82,0.6280284]
[1729639941926,25.9584,167.83,167.82,0.6280284]
[1729639945427,5.9584,167.83,167.82,0.6280284]
[1729639948716,25.9584,167.83,167.82,0.6280284]
[1729639973558,5.9584,167.83,167.82,0.6280284]
[1729639973860,5.9576,167.86,167.82,38.243725]
[1729639974158,5.9572,167.87,167.84,21.5300966]
[1729639974469,11.00258669,167.91,167.86,21.5300966]
[1729639974470,5.9563,167.89,167.86,21.5300966]
[1729639975155,5.9566,167.88,167.86,21.5300966]
[1729639975459,5.9566,167.88,167.85,21.5300966]
[1729639975656,5.9566,167.88,167.86,21.5300966]
[1729639976163,5.9566,167.88,167.85,21.5300966]
[1729639976654,20.0,167.9,167.82,16.7136284]
[1729639976859,5.958,167.84,167.82,16.7136284]
[1729639979249,20.0,167.9,167.82,27.4786767]
[1729639979455,5.957,167.87,167.84,21.5300966]
[1729639980359,5.957,167.87,167.83,21.5300966]
[1729639981567,5.9584,167.83,167.82,16.7136284]
[1729639982454,5.9584,167.83,167.82,0.6280284]
[1729639991089,14.8922,167.88,167.82,0.6280284]
[1729639991288,5.9573,167.87,167.82,22.158125]
[1729639991470,5.9576,167.86,167.82,0.6280284]
[1729639991788,5.9584,167.83,167.82,0.6280284]
[1729639993686,25.9584,167.83,167.82,0.6280284]
[1729640012290,1.03659209,167.85,167.82,0.6280284]
[1729640012511,5.958,167.84,167.82,0.6280284]
[1729640013198,5.9584,167.83,167.82,0.6280284]
[1729640015812,25.9584,167.83,167.82,0.6280284]
[1729640032518,5.9584,167.83,167.82,0.6280284]
[1729640032730,5.9581,167.84,167.82,0.6280284]
[1729640033030,5.9584,167.83,167.82,0.6280284]
[1729640035633,25.9584,167.83,167.82,0.6280284]
[1729640055733,5.9584,167.83,167.82,0.6280284]
[1729640056034,5.958,167.84,167.82,0.6280284]
[1729640064264,5.9577,167.85,167.82,22.158125]
[1729640064567,5.9577,167.85,167.83,38.1035966]
[1729640064749,5.9566,167.88,167.84,21.5300966]
[1729640064954,5.9566,167.88,167.86,21.5300966]
[1729640067436,20.0,167.91,167.86,21.5300966]
[1729640067644,5.9563,167.89,167.86,21.5300966]
[1729640068066,5.9563,167.89,167.87,21.5300966]
[1729640069963,5.9563,167.89,167.83,16.5735]
[1729640070173,9.96702554,167.92,167.84,23.776884]
[1729640070372,20.0,167.89,167.83,16.5735]
[1729640070581,5.958,167.85,167.83,16.5735]
[1729640075958,5.958,167.85,167.82,0.6280284]
[1729640076164,5.9584,167.83,167.82,0.6280284]
[1729640076465,25.9584,167.83,167.82,0.6280284]
[1729640076971,14.8915,167.88,167.82,0.6280284]
[1729640077269,5.9581,167.84,167.82,0.6280284]
[1729640079978,25.9584,167.83,167.82,0.6280284]
[1729640102699,20.0,167.83,167.75,16.3829]
[1729640103006,7.34853204,167.87,167.75,16.3829]
[1729640103007,5.9603,167.78,167.75,16.3829]
[1729640103414,49.7877,167.86,167.75,16.3829]
[1729640103415,5.9606,167.77,167.75,16.3829]
[1729640106107,14.8975,167.82,167.75,16.3829]
[1729640106400,45.1493,167.85,167.75,16.3829]
[1729640106401,21.11427987,167.85,167.77,21.5300966]
[1729640106609,5.959,167.82,167.77,21.5300966]
[1729640107193,5.9592,167.81,167.76,45.3069806]
[1729640110189,5.9592,167.81,167.77,21.5300966]
[1729640118441,14.8943,167.85,167.76,23.776884]
[1729640118632,20.0,167.83,167.75,16.3829]
[1729640118822,5.9604,167.78,167.75,16.3829]
[1729640119035,5.9594,167.8,167.73,11.5742]
[1729640119258,5.9603,167.78,167.73,11.5742]
[1729640119418,9.23113334,167.82,167.73,11.5742]
[1729640119635,5.9608,167.77,167.73,11.5742]
[1729640120219,20.0,167.8,167.73,11.5742]
[1729640120428,5.9607,167.77,167.73,11.5742]
[1729640120947,5.9601,167.78,167.73,33.1042966]
[1729640121122,5.9591,167.81,167.77,21.5300966]
[1729640121342,5.9591,167.81,167.78,21.5300966]
[1729640122264,5.9591,167.81,167.77,15.5683]
[1729640123571,15.18983334,167.82,167.77,37.0983966]
[1729640123751,6.1062,167.9,167.81,21.5300966]
[1729640124046,1.03630869,167.9,167.85,21.5300966]
[1729640124236,15.1796,167.92,167.85,21.5300966]
[1729640124237,30.0678,167.92,167.85,21.5300966]
[1729640124443,5.9563,167.89,167.86,21.5300966]
[1729640124642,5.9563,167.89,167.85,21.5300966]
[1729640124841,5.9567,167.88,167.85,21.5300966]
[1729640125040,5.9567,167.88,167.84,21.5300966]
[1729640126245,5.9567,167.88,167.83,37.0983966]
[1729640126447,5.9575,167.86,167.83,15.5683]
[1729640127749,5.9575,167.86,167.83,37.0983966]
[1729640128350,5.9575,167.86,167.83,15.5683]
[1729640130456,5.9575,167.86,167.83,37.0983966]
[1729640131259,5.9566,167.88,167.85,21.5300966]
[1729640133348,5.9566,167.88,167.83,15.5683]
[1729640133349,5.9566,167.88,167.84,21.5300966]
[1729640135128,5.9576,167.86,167.83,15.5683]
[1729640135341,5.9584,167.83,167.8,6.5601]
[1729640135550,16.6169,167.89,167.75,21.6272]
[1729640135849,5.9594,167.81,167.75,21.6272]
[1729640136852,5.9594,167.81,167.75,43.1572966]
[1729640137333,5.9595,167.8,167.75,21.6272]
[1729640137528,20.0,167.85,167.75,15.2199]
[1729640137733,5.9603,167.78,167.75,15.2199]
[1729640139033,5.9608,167.77,167.71,21.6272]
[1729640140444,5.9611,167.76,167.71,21.6272]
[1729640140632,20.0,167.8,167.71,21.6272]
[1729640140809,5.9612,167.75,167.71,21.6272]
[1729640141335,14.8995,167.79,167.71,21.6272]
[1729640141517,5.9612,167.76,167.71,21.6272]
[1729640146041,5.9602,167.78,167.71,55.76598378]
[1729640146241,20.0,167.81,167.71,21.6272]
[1729640146423,5.9612,167.76,167.71,21.6272]
[1729640147840,5.9616,167.74,167.71,15.2199]
[1729640148027,5.9616,167.74,167.67,49.57138378]
[1729640151623,5.9616,167.74,167.67,15.4326]
[1729640152332,5.9616,167.74,167.67,49.57138378]
[1729640153925,5.9616,167.74,167.68,34.13878378]
[1729640154122,5.9616,167.74,167.67,15.4326]
[1729640154428,5.9616,167.74,167.67,49.57138378]
[1729640156929,5.9616,167.74,167.68,34.13878378]
[1729640159746,25.9616,167.74,167.67,15.4326]
[1729640162424,14.8988,167.8,167.7,21.87124372]
[1729640162638,14.8988,167.8,167.73,26.87124372]
[1729640162972,23.85266154,167.83,167.74,45.64812772]
[1729640163138,5.9598,167.8,167.74,45.64812772]
[1729640163333,8.95656154,167.83,167.75,21.87124372]
[1729640163536,5.9599,167.79,167.74,45.64812772]
[1729640164232,5.9599,167.79,167.74,57.90812346]
[1729640164435,20.0,167.8,167.73,5.0]
[1729640164928,25.9616,167.74,167.73,1.5166]
[1729640165246,5.9637,167.68,167.65,0.6280284]
[1729640165736,5.9637,167.68,167.61,32.75926786]
[1729640165942,20.0,167.74,167.6,34.13123946]
[1729640166153,5.9642,167.67,167.6,34.13123946]
[1729640166455,5.9642,167.67,167.61,23.776884]
[1729640168560,20.0,167.71,167.63,57.90812346]
[1729640168863,5.9633,167.69,167.64,23.776884]
[1729640169159,5.9638,167.68,167.62,23.776884]
[1729640169657,5.9641,167.67,167.62,23.776884]
[1729640169851,5.9641,167.67,167.61,23.776884]
[1729640170741,5.965,167.65,167.61,23.776884]
[1729640170940,5.965,167.65,167.6,23.776884]
[1729640171458,5.9644,167.66,167.6,23.776884]
[1729640171846,5.9644,167.66,167.6,57.90812346]
[1729640174073,14.9037,167.75,167.66,16.6334]
[1729640174362,5.9626,167.71,167.66,16.6334]
[1729640175467,27.65081871,167.79,167.67,57.90812346]
[1729640175769,5.9616,167.74,167.69,57.90812346]
[1729640175941,5.9616,167.74,167.69,23.776884]
[1729640176146,6.0847,167.79,167.67,23.776884]
[1729640176465,6.1847,167.79,167.66,16.6334]
[1729640176967,43.776884,167.78,167.66,16.6334]
[1729640177154,20.0,167.76,167.66,16.6334]
[1729640177360,5.9618,167.74,167.67,57.90812346]
[1729640177759,5.9618,167.74,167.69,23.776884]
[1729640180060,5.9618,167.74,167.69,57.90812346]
[1729640180258,5.9608,167.76,167.71,57.90812346]
[1729640180966,5.9608,167.76,167.71,23.776884]
[1729640182363,5.9608,167.76,167.7,23.776884]
[1729640185499,5.9608,167.76,167.7,57.90812346]
[1729640189485,5.9608,167.76,167.7,23.776884]
[1729640192385,45.37666154,167.83,167.73,50.69883946]
[1729640192575,45.37666154,167.83,167.74,23.776884]
[1729640193265,5.9601,167.79,167.74,23.776884]
[1729640197464,5.9602,167.78,167.74,23.776884]
[1729640200296,5.9608,167.77,167.74,23.776884]
[1729640200591,5.9601,167.78,167.74,23.776884]
[1729640201374,5.9607,167.77,167.73,16.5676]
[1729640201574,5.9615,167.75,167.69,16.4389]
[1729640201880,5.9615,167.75,167.7,23.776884]
[1729640202970,5.9616,167.74,167.7,23.776884]
[1729640205502,5.9612,167.76,167.7,23.776884]
[1729640205687,5.9613,167.75,167.7,23.776884]
[1729640206071,5.9622,167.73,167.7,23.776884]
[1729640206592,23.876884,167.81,167.65,16.4389]
[1729640206762,5.963,167.71,167.65,16.4389]
[1729640207869,5.963,167.71,167.66,23.776884]
[1729640212388,14.9031,167.75,167.66,23.776884]
[1729640212590,5.9627,167.71,167.66,23.776884]
[1729640214703,20.0,167.74,167.66,23.776884]
[1729640214913,5.9626,167.71,167.66,23.776884]
[1729640215288,5.9641,167.67,167.61,15.4407]
[1729640217601,20.0,167.73,167.61,15.4407]
[1729640217805,20.0,167.73,167.62,23.776884]
[1729640218626,20.0,167.7,167.62,23.776884]
[1729640219097,5.964,167.68,167.62,23.776884]
[1729640219916,20.0,167.7,167.62,23.776884]
[1729640220116,5.9641,167.67,167.62,23.776884]
[1729640225327,20.0,167.7,167.62,23.776884]
[1729640225628,5.9637,167.68,167.62,23.776884]
[1729640227013,5.9641,167.67,167.62,23.776884]
[1729640227220,20.0,167.73,167.62,23.776884]
[1729640227221,5.9647,167.66,167.62,23.776884]
[1729640227403,5.9641,167.67,167.62,23.776884]
[1729640231031,5.9648,167.65,167.62,23.776884]
[1729640232734,8.60566961,167.7,167.61,15.4407]
[1729640233020,5.9655,167.64,167.61,15.4407]
[1729640238210,8.60566961,167.7,167.59,23.776884]
[1729640238414,5.9663,167.61,167.55,21.8899741]
[1729640238615,5.9663,167.61,167.54,21.9899741]
[1729640239106,5.9663,167.61,167.55,21.8899741]
[1729640239332,20.0,167.65,167.55,21.8899741]
[1729640239527,5.9659,167.62,167.55,21.8899741]
[1729640239835,5.9659,167.62,167.56,23.776884]
[1729640240241,22.1779,167.66,167.56,23.776884]
[1729640240458,5.9661,167.62,167.56,23.776884]
[1729640240614,5.9653,167.64,167.58,23.776884]
[1729640240815,5.9655,167.63,167.58,23.776884]
[1729640241116,5.9648,167.65,167.6,23.776884]
[1729640241334,5.9651,167.64,167.6,23.776884]
[1729640246322,5.9648,167.65,167.6,23.776884]
[1729640247849,5.9656,167.63,167.56,20.0]
[1729640248019,5.9656,167.63,167.57,23.776884]
[1729640249345,20.0,167.67,167.59,23.776884]
[1729640249539,5.9649,167.65,167.59,45.6668581]
[1729640250541,30.78356961,167.7,167.6,10.94498705]
[1729640250737,20.0,167.69,167.61,21.8899741]
[1729640250934,5.9644,167.67,167.62,23.776884]
[1729640251440,5.9644,167.67,167.61,38.781384]
[1729640251741,5.9634,167.69,167.64,21.8899741]
[1729640251942,8.60566961,167.7,167.65,45.6668581]
[1729640252149,8.60566961,167.7,167.66,21.8899741]
[1729640252329,14.56866961,167.7,167.65,23.776884]
[1729640252942,5.9628,167.71,167.65,45.6668581]
[1729640253240,20.0,167.73,167.65,23.776884]
[1729640254422,5.9628,167.71,167.65,23.776884]
[1729640254623,5.9619,167.74,167.68,21.8899741]
[1729640254825,14.9014,167.77,167.68,21.8899741]
[1729640255044,5.9623,167.72,167.68,23.776884]
[1729640256057,5.9605,167.77,167.63,20.0]
[1729640256237,7.76829437,167.76,167.63,23.776884]
[1729640256423,20.0,167.73,167.63,23.776884]
[1729640256626,5.9647,167.66,167.63,23.776884]
[1729640257048,5.9648,167.65,167.58,37.8350741]
[1729640258453,5.9648,167.65,167.59,23.776884]
[1729640260336,5.9651,167.65,167.59,23.776884]
[1729640265563,5.9651,167.65,167.59,45.6668581]
[1729640266555,5.9651,167.65,167.59,23.776884]
[1729640274754,5.9651,167.65,167.59,45.6668581]
[1729640276773,5.9641,167.67,167.63,23.776884]
[1729640276945,5.9639,167.68,167.63,23.776884]
[1729640278674,5.9639,167.68,167.62,23.776884]
[1729640279152,5.9639,167.68,167.62,45.6668581]
[1729640282762,5.9648,167.65,167.62,23.776884]
[1729640282957,20.0,167.69,167.62,23.776884]
[1729640283372,20.0,167.69,167.59,21.8899741]
[1729640284357,5.9649,167.65,167.59,21.8899741]
[1729640284756,5.9649,167.65,167.6,23.776884]
[1729640285158,5.9649,167.65,167.59,45.6668581]
[1729640289783,5.9649,167.65,167.59,23.776884]
[1729640292585,20.0,167.69,167.59,23.776884]
[1729640292878,5.9662,167.62,167.59,23.776884]
[1729640293098,20.0,167.68,167.59,23.776884]
[1729640293255,5.9648,167.65,167.59,23.776884]
[1729640296983,5.9656,167.63,167.59,23.776884]
[1729640299289,26.2799,167.68,167.59,23.776884]
[1729640300368,5.9655,167.63,167.59,23.776884]
[1729640300788,26.2799,167.68,167.6,23.776884]
[1729640300973,5.9648,167.65,167.6,23.776884]
[1729640301774,26.2799,167.68,167.6,23.776884]
[1729640301983,5.9651,167.64,167.6,23.776884]
[1729640304088,5.9637,167.68,167.62,21.8899741]
[1729640304300,5.9637,167.68,167.63,21.8899741]
[1729640304473,5.9631,167.7,167.64,45.6668581]
[1729640304676,5.9634,167.69,167.64,23.776884]
[1729640305904,5.9634,167.69,167.64,45.6668581]
[1729640307296,5.9634,167.69,167.64,23.776884]
[1729640312299,5.9634,167.69,167.64,45.6668581]
[1729640316095,8.44125542,167.72,167.64,23.776884]
[1729640316313,20.0,167.71,167.62,23.776884]
[1729640316600,5.9647,167.66,167.61,15.9934]
[1729640316899,5.9648,167.65,167.61,15.9934]
[1729640318696,5.9648,167.65,167.59,28.1676741]
[1729640318898,5.9648,167.65,167.6,23.776884]
[1729640321113,5.9658,167.62,167.57,15.2514]
[1729640321456,5.9658,167.62,167.55,6.3651]
[1729640321457,5.9669,167.6,167.53,37.1413741]
[1729640321617,5.9661,167.62,167.54,21.8899741]
[1729640321908,5.9661,167.62,167.53,15.2514]
[1729640321909,34.9109,167.67,167.56,21.8899741]
[1729640322090,20.0,167.67,167.56,21.8899741]
[1729640322285,5.9651,167.64,167.58,21.8899741]
[1729640322483,20.0,167.67,167.6,21.8899741]
[1729640322688,5.9644,167.66,167.6,21.8899741]
[1729640323081,5.9649,167.65,167.6,21.8899741]
[1729640323282,5.9649,167.65,167.59,37.1413741]
[1729640325509,5.9649,167.65,167.6,21.8899741]
[1729640330000,5.9649,167.65,167.59,15.2514]
[1729640330204,5.9659,167.62,167.59,15.2514]
[1729640330506,5.9657,167.63,167.57,23.776884]
[1729640331285,34.9102,167.67,167.57,23.776884]
[1729640331286,5.9636,167.69,167.62,21.8899741]
[1729640331488,5.964,167.68,167.63,21.8899741]
[1729640332208,14.9071,167.71,167.63,21.8899741]
[1729640332400,5.9641,167.67,167.63,21.8899741]
[1729640332914,5.9641,167.67,167.63,10.94498705]
[1729640333213,5.9641,167.67,167.62,21.8899741]
[1729640334298,5.9641,167.67,167.63,21.8899741]
[1729640335606,5.9641,167.67,167.61,21.8899741]
[1729640338318,5.9641,167.67,167.62,21.8899741]
[1729640341017,5.9641,167.67,167.61,21.8899741]
[1729640346111,20.0,167.71,167.58,21.8899741]
[1729640346417,43.976884,167.68,167.56,16.5642]
[1729640346717,5.9671,167.59,167.56,16.5642]
[1729640346890,5.9671,167.59,167.52,16.5642]
[1729640347094,5.9671,167.59,167.53,21.8899741]
[1729640347399,5.9671,167.59,167.52,16.5642]
[1729640347603,5.9671,167.59,167.53,21.8899741]
[1729640348393,5.9671,167.59,167.54,23.776884]
[1729640349614,5.9671,167.59,167.53,23.776884]
[1729640350500,5.9666,167.6,167.53,23.776884]
[1729640351300,30.0204,167.67,167.53,23.776884]
[1729640351502,5.967,167.59,167.53,23.776884]
[1729640366628,5.967,167.59,167.53,45.6668581]
[1729640366928,36.9159,167.64,167.53,45.6668581]
[1729640367306,20.0,167.63,167.53,45.6668581]
[1729640368438,5.9648,167.65,167.56,21.8899741]
[1729640368633,22.003,167.68,167.58,10.94498705]
[1729640368805,5.9649,167.65,167.59,21.8899741]
[1729640369219,5.9649,167.65,167.6,21.8899741]
[1729640369739,5.9649,167.65,167.59,21.8899741]
[1729640370031,66.63993342,167.72,167.58,15.4568]
[1729640370032,5.9652,167.64,167.58,15.4568]
[1729640370208,20.0,167.7,167.58,15.4568]
[1729640370534,5.9653,167.64,167.58,15.4568]
[1729640373320,5.9653,167.64,167.58,37.3467741]
[1729640373525,5.9653,167.64,167.58,15.4568]
[1729640378642,5.9653,167.64,167.58,37.3467741]
[1729640383035,14.909,167.69,167.58,37.3467741]
[1729640383236,5.9648,167.65,167.58,37.3467741]
[1729640394739,5.9648,167.65,167.58,15.4568]
[1729640394912,5.9648,167.65,167.58,37.3467741]
[1729640396641,5.9648,167.65,167.59,21.8899741]
[1729640398521,5.9648,167.65,167.58,37.3467741]
[1729640401037,5.9648,167.65,167.59,21.8899741]
[1729640405861,15.5532,167.72,167.64,21.8899741]
[1729640406028,5.9628,167.71,167.66,21.8899741]
[1729640406927,5.9631,167.7,167.66,21.8899741]
[1729640407330,5.9631,167.7,167.6,111.3367804]
[1729640407331,5.9631,167.7,167.64,21.8899741]
[1729640408331,5.9631,167.7,167.65,21.8899741]
[1729640409226,25.9625,167.72,167.66,21.8899741]
[1729640409432,7.6052974,167.73,167.64,16.1989]
[1729640409830,5.9634,167.69,167.64,16.1989]
[1729640410236,5.9634,167.69,167.62,27.9344741]
[1729640410445,5.9634,167.69,167.6,39.975784]
[1729640410446,5.9647,167.66,167.6,39.975784]
[1729640410638,5.9641,167.67,167.6,38.0888741]
[1729640410845,5.9641,167.67,167.61,21.8899741]
[1729640411933,5.9641,167.67,167.62,21.8899741]
[1729640413641,5.9641,167.67,167.6,16.1989]
[1729640413642,5.9641,167.67,167.61,21.8899741]
[1729640414040,5.9641,167.67,167.6,16.1989]
[1729640414240,5.9641,167.67,167.61,21.8899741]
[1729640416757,5.9641,167.67,167.6,16.1989]
[1729640416958,14.9075,167.7,167.6,16.1989]
[1729640417151,5.9647,167.66,167.6,16.1989]
[1729640417339,5.9641,167.67,167.6,16.1989]
[1729640418445,5.9641,167.67,167.6,38.0888741]
[1729640430468,14.9075,167.7,167.6,16.1989]
[1729640430670,5.9644,167.66,167.6,38.0888741]
[1729640431765,5.9641,167.67,167.6,38.0888741]
[1729640436343,5.9641,167.67,167.61,21.8899741]
[1729640437350,5.964,167.67,167.58,27.9344741]
[1729640437548,5.9648,167.66,167.58,27.9344741]
[1729640437748,6.18097039,167.71,167.59,23.776884]
[1729640437983,7.6052974,167.73,167.67,21.8899741]
[1729640438258,7.6052974,167.73,167.69,21.8899741]
[1729640439357,13.5672974,167.73,167.65,23.776884]
[1729640439557,13.5672974,167.73,167.67,21.8899741]
[1729640441075,7.6052974,167.73,167.64,6.5731]
[1729640441402,5.9629,167.71,167.64,28.4630741]
[1729640441750,5.9629,167.71,167.63,43.776884]
[1729640441953,5.9629,167.71,167.63,23.776884]
[1729640442156,5.9629,167.71,167.64,21.8899741]
[1729640442769,20.0,167.72,167.62,15.12]
[1729640443185,20.0,167.72,167.63,45.6668581]
[1729640443372,5.9626,167.71,167.66,21.8899741]
[1729640444163,5.9626,167.71,167.63,23.776884]
[1729640444366,5.9629,167.71,167.64,21.8899741]
[1729640444565,5.9629,167.71,167.65,21.8899741]
[1729640446383,5.9629,167.71,167.64,21.8899741]
[1729640446591,5.9629,167.71,167.65,21.8899741]
[1729640448581,13.5673974,167.73,167.67,21.8899741]
[1729640448964,7.6052974,167.73,167.67,21.8899741]
[1729640449775,7.6052974,167.73,167.66,21.8899741]
[1729640449972,13.5673974,167.73,167.66,21.8899741]
[1729640452972,5.9629,167.71,167.65,23.776884]
[1729640453182,5.9623,167.72,167.66,21.8899741]
[1729640458697,7.6052974,167.73,167.67,21.8899741]
[1729640459508,5.9623,167.72,167.65,23.776884]
[1729640459693,5.9623,167.72,167.66,21.8899741]
[1729640459883,7.6052974,167.73,167.66,21.8899741]
[1729640460079,13.5672974,167.73,167.66,21.8899741]
[1729640463288,13.5672974,167.73,167.67,21.8899741]
[1729640464004,7.6052974,167.73,167.65,23.776884]
[1729640464186,5.9634,167.69,167.64,20.0]
[1729640464705,5.963,167.7,167.64,23.776884]
[1729640465408,5.9632,167.7,167.63,21.8899741]
[1729640465713,5.9632,167.7,167.64,21.8899741]
[1729640465888,5.9632,167.7,167.64,10.94498705]
[1729640466095,5.9632,167.7,167.64,21.8899741]
[1729640466889,5.9632,167.7,167.63,23.776884]
[1729640467209,7.6052974,167.73,167.68,21.8899741]
[1729640467504,7.6052974,167.73,167.7,21.8899741]
[1729640467717,7.6052974,167.73,167.69,21.8899741]
[1729640470181,7.6052974,167.73,167.7,21.8899741]
[1729640470908,7.6052974,167.73,167.72,21.8899741]
[1729640471105,7.6052974,167.73,167.7,21.8899741]
[1729640472292,7.6052974,167.73,167.68,15.5307]
[1729640472696,13.5673974,167.73,167.68,15.5307]
[1729640472897,5.9623,167.72,167.68,15.5307]
[1729640473597,5.9623,167.72,167.66,21.8899741]
[1729640475498,5.9623,167.72,167.65,45.6668581]
[1729640477410,7.6052974,167.73,167.69,21.8899741]
[1729640477910,7.6052974,167.73,167.68,21.8899741]
[1729640486131,7.6052974,167.73,167.69,21.8899741]
[1729640491126,13.5671974,167.73,167.67,21.8899741]
[1729640493431,7.6052974,167.73,167.69,21.8899741]
[1729640493611,7.6052974,167.73,167.71,21.8899741]
[1729640494928,7.6052974,167.73,167.7,21.8899741]
[1729640499638,22.8808,167.81,167.7,21.8899741]
[1729640499930,5.9612,167.75,167.7,21.8899741]
[1729640505640,5.962,167.73,167.65,23.776884]
[1729640505840,5.962,167.73,167.67,23.776884]
[1729640506422,25.9615,167.75,167.68,21.8899741]
[1729640506625,5.9616,167.74,167.68,21.8899741]
[1729640506946,5.9616,167.74,167.67,45.6668581]
[1729640507136,5.9616,167.74,167.68,21.8899741]
[1729640508043,5.9616,167.74,167.67,45.6668581]
[1729640509934,20.0,167.75,167.67,21.8899741]
[1729640510141,5.9621,167.73,167.66,21.8899741]
[1729640511351,20.0,167.75,167.66,21.8899741]
[1729640511652,5.9618,167.74,167.66,21.8899741]
[1729640512041,5.9618,167.74,167.67,21.8899741]
[1729640515540,20.0,167.75,167.67,21.8899741]
[1729640515758,23.25695519,167.79,167.7,21.8899741]
[1729640516053,5.9609,167.76,167.7,21.8899741]
[1729640519042,5.9609,167.76,167.71,21.8899741]
[1729640521368,25.9605,167.78,167.72,45.6668581]
[1729640521667,5.9605,167.78,167.72,45.6668581]
[1729640522166,13.33325519,167.79,167.73,21.8899741]
[1729640523839,7.37345519,167.79,167.74,21.8899741]
[1729640525156,7.37345519,167.79,167.73,21.8899741]
[1729640528367,7.37345519,167.79,167.75,21.8899741]
[1729640530669,7.37345519,167.79,167.76,21.8899741]
[1729640530972,7.37345519,167.79,167.78,21.8899741]
[1729640531163,5.958,167.84,167.78,21.8899741]
[1729640531369,5.958,167.84,167.79,21.8899741]
[1729640531682,5.958,167.84,167.77,21.8899741]
[1729640531868,5.958,167.84,167.78,21.8899741]
[1729640532449,5.958,167.84,167.77,21.8899741]
[1729640532667,5.958,167.84,167.78,21.8899741]
[1729640533370,5.958,167.84,167.77,21.8899741]
[1729640533753,14.8927,167.87,167.75,23.776884]
[1729640533754,5.959,167.82,167.75,23.776884]
[1729640534650,5.9593,167.81,167.75,23.776884]
[1729640535358,20.0,167.81,167.69,22.477]
[1729640535565,5.9604,167.78,167.7,21.8899741]
[1729640535769,5.9604,167.78,167.71,10.94498705]
[1729640535957,5.9598,167.79,167.72,21.8899741]
[1729640536860,5.9598,167.79,167.69,22.477]
[1729640536861,5.9598,167.79,167.71,21.8899741]
[1729640537256,5.9598,167.79,167.72,23.776884]
[1729640541259,5.9598,167.79,167.71,23.776884]
[1729640548480,5.9598,167.79,167.72,21.8899741]
[1729640549064,5.9598,167.79,167.71,45.6668581]
[1729640550871,5.9598,167.79,167.71,23.776884]
[1729640551572,20.0,167.81,167.71,23.776884]
[1729640551775,5.9601,167.78,167.71,23.776884]
[1729640556091,5.9601,167.78,167.7,23.776884]
[1729640556969,5.9601,167.78,167.7,45.6668581]